Cogmind - Beta 10.2 @@@ ROGUE MODE // 2022.01.05 @ 14:58:57 // Winter2019/RPGLIKE Player: Bokkiewokkie Result: Destroyed by Superbehemoth with Precision Phase Gun Performance ------------- Evolutions (7) 3500 Regions Visited (26) 5200 Robots Destroyed (217) 1085 Value Destroyed (9603) 9603 Prototype IDs (77) 1540 Alien Tech Used (3) 600 Bonus (5171) 5171 TOTAL SCORE: 26699 Bonus ------- High Alert Combat Kills 726 Follower Combat Kills 1545 Network Hubs Disabled 400 Met Data Miner 300 Met Imprinter 300 Met Zhirov 300 Built Enhanced Grunts 300 A7 Reached Mainframe 300 Hacked Protovariant 500 Scanned by Researcher 500 Cogmind --------- Core Integrity 0/1700 Matter 285/300 Energy 770/790 System Corruption 13% Temperature Cool (18) Movement Hovering (45) Location -3/Testing Parts ------- > --- POWER (2) -------- Enhanced Fission Core Particle Reactor > --- PROPULSION (4) --- Cooled Gravmag System Cooled Gravmag System Antigrav Array > --- UTILITY (11) ----- Experimental Optical Array Advanced Signal Interpreter Improved Melee Analysis Suite Core Analyzer Advanced Core Analyzer Improved Armor Integrity Analyzer Improved Transmission Jammer Light Regenerative Plating Thermal Shield Advanced System Shield > --- WEAPON (3) ------- Thunder Hammer Makeshift Axe Makeshift Spear > --- INVENTORY (3) ---- Hardened Heavy Armor Plating Advanced Datajack Peak State ------------ > --- POWER ------------ Enhanced Fission Core Particle Reactor > --- PROPULSION ------- Cooled Gravmag System Cooled Gravmag System Antigrav Array > --- UTILITY ---------- Long-range Sensor Array Advanced Signal Interpreter Core Analyzer Improved Armor Integrity Analyzer Improved Transmission Jammer Reaction Control System Light Regenerative Plating Improved Focal Shield Advanced System Shield Advanced System Shield Experimental Reclamation Unit > --- WEAPON ----------- Makeshift Axe Centrium Greatsword > --- INVENTORY -------- Advanced Datajack Makeshift Spear [Rating: 126] Favorites ----------- Power Enhanced Nuclear Core Engine Heavy Deuterium Engine Power Core Enhanced Nuclear Core Reactor Particle Reactor Propulsion Improved VTOL Module Wheel Compact Wheel Hover Unit Cooled Gravmag System Flight Unit Improved VTOL Module Utility Advanced Signal Interpreter Device Long-range Sensor Array Processor Advanced Signal Interpreter Hackware Advanced System Shield Protection Centrium Medium Armor Plating Weapon Spear Energy Gun Medium Laser Energy Cannon Long-range Proton Cannon Impact Weapon Hammer Slashing Weapon Mining Claw Piercing Weapon Spear Special Melee Weapon Datajack Build | -11 -10 -10 -10 -9 -8 -7 -7 -7 -6 -6 -6 -6 -6 -5 -5 -5 -5 -5 -5 -4 -4 -4 -4 -3 -3 -3 ------- Run | Scr Mat Min Exi Min Mat Fac Low Dat Pro Fac Low Low Zio Pro Fac Ext Cet Arc Hub Fac Upp Upp Zhi Pro Res Tes Slots Evolved 15 | 1 2 1 . . 3 3 . . . 1 . . . 1 . 1 . . 1 . . . . . 1 . Power 1 | . . . . . . 1 . . . . . . . . . . . . . . . . . . . . Propulsion 3 | . 1 . . . 1 1 . . . . . . . . . . . . . . . . . . . . Utility 9 | 1 . 1 . . 2 1 . . . . . . . 1 . 1 . . 1 . . . . . 1 . Weapon 2 | . 1 . . . . . . . . 1 . . . . . . . . . . . . . . . . Parts Attached 129 | 5 7 . . 2 18 19 . . . 6 . 3 2 1 2 9 3 . 8 5 . 5 10 5 13 6 Power 20 | 1 . . . 1 8 4 . . . . . . . . . 2 . . . 1 . . 1 1 1 . Engine 10 | 1 . . . 1 5 2 . . . . . . . . . 1 . . . . . . . . . . Core 7 | . . . . . 3 2 . . . . . . . . . 1 . . . . . . . . 1 . Reactor 3 | . . . . . . . . . . . . . . . . . . . . 1 . . 1 1 . . Propulsion 25 | 1 3 . . . 3 6 . . . 1 . . . . 1 . . . . 2 . . 5 1 2 . Treads . | . . . . . . . . . . . . . . . . . . . . . . . . . . . Leg . | . . . . . . . . . . . . . . . . . . . . . . . . . . . Wheel 2 | 1 1 . . . . . . . . . . . . . . . . . . . . . . . . . Hover 8 | . 2 . . . . . . . . . . . . . . . . . . . . . 4 . 2 . Flight 15 | . . . . . 3 6 . . . 1 . . . . 1 . . . . 2 . . 1 1 . . Utility 61 | 2 . . . 1 5 8 . . . 3 . 3 2 1 1 6 3 . 2 . . 5 4 2 10 3 Device 21 | 1 . . . . 1 4 . . . . . 1 2 1 . . . . . . . . 1 1 9 . Storage . | . . . . . . . . . . . . . . . . . . . . . . . . . . . Processor 14 | 1 . . . 1 2 3 . . . 2 . . . . . . . . . . . 2 . . . 3 Hackware 4 | . . . . . . . . . . . . . . . . 1 . . 2 . . . 1 . . . Protection 22 | . . . . . 2 1 . . . 1 . 2 . . 1 5 3 . . . . 3 2 1 1 . Artifact . | . . . . . . . . . . . . . . . . . . . . . . . . . . . Weapon 23 | 1 4 . . . 2 1 . . . 2 . . . . . 1 . . 6 2 . . . 1 . 3 Energy Gun 2 | 1 1 . . . . . . . . . . . . . . . . . . . . . . . . . Energy Cannon 2 | . . . . . . . . . . . . . . . . . . . 2 . . . . . . . Ballistic Gun . | . . . . . . . . . . . . . . . . . . . . . . . . . . . Ballistic Cannon . | . . . . . . . . . . . . . . . . . . . . . . . . . . . Launcher . | . . . . . . . . . . . . . . . . . . . . . . . . . . . Special Weapon . | . . . . . . . . . . . . . . . . . . . . . . . . . . . Impact Weapon 2 | . 1 . . . . . . . . . . . . . . . . . . . . . . . . 1 Slashing Weapon 7 | . 2 . . . 2 . . . . 1 . . . . . . . . . 1 . . . 1 . . Piercing Weapon 4 | . . . . . . 1 . . . . . . . . . . . . 2 . . . . . . 1 Special Melee Weapon 6 | . . . . . . . . . . 1 . . . . . 1 . . 2 1 . . . . . 1 Unidentified Prototypes 17 | . . . . . 2 1 . . . 1 . . 1 . . . 1 . . 1 . 1 5 . 3 1 Parts Lost 14 | . . . . . 1 . . . . . 1 . . 1 . 1 . . 1 . . 1 . 4 2 2 Power . | . . . . . . . . . . . . . . . . . . . . . . . . . . . Propulsion 1 | . . . . . . . . . . . . . . . . . . . . . . . . 1 . . Utility 10 | . . . . . 1 . . . . . 1 . . . . 1 . . . . . 1 . 3 2 1 Weapon 3 | . . . . . . . . . . . . . . 1 . . . . 1 . . . . . . 1 Highest Loss Streak 4 | . . . . . 1 . . . . . 1 . . 1 . 1 . . 1 . . 1 . 4 2 1 Average Slot Usage (%) 94 | . 99 87 87 97 99 99 100 100 95 99 97 99 100 93 93 96 100 100 99 92 88 87 88 88 89 91 Engine 5 | . 15 12 12 12 3 3 7 7 7 6 6 6 6 6 6 5 5 5 5 1 . . . . . . Core 4 | . . . . . 7 10 7 7 7 6 6 6 6 6 6 5 5 5 5 5 5 5 5 1 . 5 Reactor 2 | . . . . . . . . . . . . . . . . . . . . 3 5 5 5 8 9 5 Hover 7 | . 9 25 25 25 . . . . . . . . . . . . . . . . . . 10 16 15 15 Flight 14 | . . . . . 25 28 28 28 28 27 26 26 26 25 25 23 23 23 22 20 16 15 5 2 2 . Device 12 | . 15 12 12 12 8 15 14 14 14 13 13 15 13 16 18 11 11 11 11 11 11 10 7 8 16 19 Processor 18 | . 15 12 12 22 23 23 21 21 16 20 20 20 20 18 18 17 17 17 16 16 16 17 21 21 17 20 Hackware 4 | . . . . . . . . . . . . . . . . 4 5 5 7 11 11 10 12 15 12 9 Protection 5 | . . . . . 10 . 7 7 7 6 3 3 6 6 6 10 11 11 11 11 11 10 8 2 3 5 Slashing Weapon 10 | . 8 25 25 25 20 8 7 7 7 6 6 6 6 6 6 5 5 5 5 5 5 5 5 8 10 8 Piercing Weapon 2 | . . . . . . 6 7 7 7 6 6 6 6 6 6 5 5 5 4 3 . . . . . 1 Special Melee Weapon 1 | . . . . . . . . . . . 6 6 6 . . 1 5 5 4 2 5 5 5 1 . 1 Naked Turns . | . . . . . . . . . . . . . . . . . . . . . . . . . . . Heaviest Build 57 | 8 11 10 10 10 18 31 31 31 31 36 36 36 36 36 36 43 38 38 44 41 41 41 47 47 57 53 Greatest Support 101 | 21 37 17 17 17 23 34 34 34 34 41 41 41 41 41 48 48 44 44 48 52 52 52 77 77 101 85 Greatest Overweight (x) 2 | . . . . . 1 . . . . . . . . . . . . . . . . . 2 . . . Average Overweight (x) . | . . . . . . . . . . . . . . . . . . . . . . . . . . . Largest Inventory Capacity 3 | 1 1 1 1 1 1 1 1 1 1 2 2 2 2 2 2 2 2 2 2 2 3 3 3 3 3 3 Average Capacity 1 | 1 1 1 1 1 1 1 1 1 1 1 2 2 2 2 2 2 2 2 2 2 2 3 3 3 3 3 Most Carried 3 | 1 1 1 1 1 1 1 . . 1 1 . 2 2 2 2 2 2 2 2 2 2 2 3 3 3 3 Average Carried 1 | . . . 1 . . . . . . . . 1 1 1 1 1 2 2 1 1 2 1 2 2 2 2 Final Capacity 3 | 1 1 1 1 1 1 1 1 1 1 2 2 2 2 2 2 2 2 2 2 2 3 3 3 3 3 3 Final Carried 3 | 1 1 1 1 1 . . . . 1 . . 2 2 1 2 2 2 2 1 2 2 2 3 3 3 3 Class Distribution -------------------- 25% | Wizard-Scout 25% | Sprinter 18% | Scavenger-Mutant 10% | Hacker-Sprinter 8% | Hacker-Scout 6% | Wizard-Ninja 3% | Mutant Dominant Class ---------------- Mutant | -10/Materials Scavenger-Mutant | -10/Mines Scavenger-Mutant | -10/Exiles Scavenger-Mutant | -9/Mines Sprinter | -8/Materials Sprinter | -7/Factory Sprinter | -7/Lower Caves Sprinter | -7/Data Miner Sprinter | -6/Proximity Caves Sprinter | -6/Factory Sprinter | -6/Lower Caves Hacker-Sprinter | -6/Lower Caves Hacker-Sprinter | -6/Zion Hacker-Sprinter | -5/Proximity Caves Hacker-Sprinter | -5/Factory Hacker-Scout | -5/Extension Hacker-Scout | -5/Cetus Hacker-Scout | -5/Archives Hacker-Scout | -5/Hub_04(d) Wizard-Scout | -4/Factory Wizard-Scout | -4/Upper Caves Wizard-Scout | -4/Upper Caves Wizard-Scout | -4/Zhirov Wizard-Scout | -3/Proximity Caves Wizard-Scout | -3/Research Wizard-Ninja | -3/Testing Resources | -11 -10 -10 -10 -9 -8 -7 -7 -7 -6 -6 -6 -6 -6 -5 -5 -5 -5 -5 -5 -4 -4 -4 -4 -3 -3 -3 ----------- Run | Scr Mat Min Exi Min Mat Fac Low Dat Pro Fac Low Low Zio Pro Fac Ext Cet Arc Hub Fac Upp Upp Zhi Pro Res Tes Matter Collected 1563 | 234 86 . . 20 180 180 10 . . 60 . 30 20 10 20 89 20 10 80 59 . 60 120 50 134 91 Remotely . | . . . . . . . . . . . . . . . . . . . . . . . . . . . Salvage Created 10668 | 12 332 117 . 208 992 1009 . . 98 527 88 . . 527 392 425 337 133 1211 740 . 375 417 1571 273 884 Parts 535 | 4 13 . . 11 58 60 2 . 20 40 14 2 . 36 14 27 16 3 44 29 3 16 3 53 20 47 Haulers Intercepted 15 | . 1 . . . 4 4 . . . . . . . . . . . . 2 2 . . . . 1 1 Recyclers Shooed 1 | . 1 . . . . . . . . . . . . . . . . . . . . . . . . . Parts Field Recycled . | . . . . . . . . . . . . . . . . . . . . . . . . . . . Retrieved Matter . | . . . . . . . . . . . . . . . . . . . . . . . . . . . Parts Self-Destructed 147 | . . . . . . . 2 . 21 . 14 3 . 36 . . . . . . 7 14 2 48 . . Prevented 3 | . . . . . . . . . . . . 1 . . . . . . . . . 2 . . . . Kills | -11 -10 -10 -10 -9 -8 -7 -7 -7 -6 -6 -6 -6 -6 -5 -5 -5 -5 -5 -5 -4 -4 -4 -4 -3 -3 -3 ------- Run | Scr Mat Min Exi Min Mat Fac Low Dat Pro Fac Low Low Zio Pro Fac Ext Cet Arc Hub Fac Upp Upp Zhi Pro Res Tes Combat Hostiles Destroyed 164 | . 6 1 . 5 20 17 1 . 4 6 3 1 . 17 7 7 5 1 12 4 1 8 . 24 3 11 Melee 158 | . . 1 . 5 20 17 1 . 4 6 3 1 . 17 7 7 5 1 12 4 1 8 . 24 3 11 Guns 5 | . 5 . . . . . . . . . . . . . . . . . . . . . . . . . Classes Destroyed 17 | 1 4 1 . 1 3 2 1 . . . . . . . 1 . . . 2 . . . . . . 1 Worker 5 | . . . . . . . . . . . . . . . 1 . . . 2 . . . . . 2 . Builder 3 | . . . . . . . . . . . . . . . . . . . 3 . . . . . . . Tunneler 1 | 1 . . . . . . . . . . . . . . . . . . . . . . . . . . Hauler 15 | . 1 . . . 4 4 . . . . . . . . . . . . 2 2 . . . . 1 1 Recycler 2 | . . 1 . . . . . . . . . . . . . . . . 1 . . . . . . . Operator 7 | . . . . . . 1 . . . 1 . . . . . 3 . . . 2 . . . . . . Watcher 19 | . 2 . . . 4 3 . . . 4 . . . . . . . . 2 4 . . . . . . Swarmer 43 | . 2 1 . . 4 3 . . . . . . . 12 2 . 2 . . 1 . 4 . 12 . . Grunt 63 | . 4 . . 4 9 9 . . . 1 . . . 4 3 5 . . 5 . . 4 . 7 . 8 Brawler 3 | . . . . . 1 . . . . . . . . . 1 . . . . . . . . 1 . . Duelist 3 | . . . . 1 1 . . . . . . . . . . . . . . . . . . 1 . . Protector 1 | . . . . . . . . . . . . . . . . . . . 1 . . . . . . . Sentry 29 | . . . . . 4 4 . . . 3 . . . 1 . 1 . 1 5 3 . . . 3 1 3 Hunter 12 | . . . . . 1 . . . 4 . 2 1 . . 1 . 1 . . . . . . . 2 . Programmer 3 | . . . . . . 1 . . . 1 1 . . . . . . . . . . . . . . . Behemoth 4 | . . . . . . . 1 . . 1 . . . . . 1 . . . . 1 . . . . . Cetus Guard 2 | . . . . . . . . . . . . . . . . . 2 . . . . . . . . . Lightning 1 | . . . . . . . . . . . . . . . . . . . 1 . . . . . . . Investigator 1 | . . . . . . . . . . . . . . . . . . . . . . . . . . 1 Best Kill Streak 12 | 1 4 1 . 3 8 5 1 . 2 3 3 1 . 5 4 2 3 1 5 7 1 4 . 12 3 6 Combat Bots Only 12 | . 4 1 . 3 7 4 1 . 2 1 3 1 . 5 4 2 3 1 3 1 1 4 . 12 2 3 Max Kills in Single Turn 4 | 1 2 1 . 1 1 1 1 . 1 1 1 1 . 1 1 1 1 1 4 2 1 1 . 1 1 1 Gunslinging . | . . . . . . . . . . . . . . . . . . . . . . . . . . . Exploded . | . . . . . . . . . . . . . . . . . . . . . . . . . . . Melee 1 | . . 1 . 1 1 1 1 . 1 1 1 1 . 1 1 1 1 1 1 1 1 1 . 1 1 1 Uniques/NPCs Destroyed . | . . . . . . . . . . . . . . . . . . . . . . . . . . . Combat | -11 -10 -10 -10 -9 -8 -7 -7 -7 -6 -6 -6 -6 -6 -5 -5 -5 -5 -5 -5 -4 -4 -4 -4 -3 -3 -3 -------- Run | Scr Mat Min Exi Min Mat Fac Low Dat Pro Fac Low Low Zio Pro Fac Ext Cet Arc Hub Fac Upp Upp Zhi Pro Res Tes Damage Taken 15364 | . 389 109 . 251 676 755 254 . 191 501 213 63 . 742 639 1470 534 326 2745 195 194 392 . 2349 596 1780 Core 10196 | . 318 90 . 216 484 615 177 . 139 354 125 48 . 505 459 967 290 188 1577 121 116 231 . 1481 435 1260 Absorbed by Shields 409 | . . . . . . . . . . . . . . . . 235 174 . . . . . . . . . Redirected to Core 7845 | . 230 58 . 126 294 389 119 . 113 213 109 48 . 435 382 692 271 166 1191 121 97 208 . 1247 395 941 Core Remaining (%) 71 | 100 . . . 62 96 . . . 90 . . . . 83 . . . . 24 . . . . 46 . . Volleys Fired 43 | 1 37 . . . . . . . . . . . . . . . . . 5 . . . . . . . Largest 2 | 1 2 . . . . . . . . . . . . . . . . . 1 . . . . . . . Hottest 115 | 50 115 . . . . . . . . . . . . . . . . . 81 . . . . . . . Shots Fired 53 | 1 47 . . . . . . . . . . . . . . . . . 5 . . . . . . . Gun 48 | 1 47 . . . . . . . . . . . . . . . . . . . . . . . . . Cannon 5 | . . . . . . . . . . . . . . . . . . . 5 . . . . . . . Launcher . | . . . . . . . . . . . . . . . . . . . . . . . . . . . Special . | . . . . . . . . . . . . . . . . . . . . . . . . . . . Kinetic . | . . . . . . . . . . . . . . . . . . . . . . . . . . . Thermal 48 | 1 47 . . . . . . . . . . . . . . . . . . . . . . . . . Explosive . | . . . . . . . . . . . . . . . . . . . . . . . . . . . Electromagnetic 5 | . . . . . . . . . . . . . . . . . . . 5 . . . . . . . Robot Hit Streak 11 | . 11 . . . . . . . . . . . . . . . . . . . . . . . . . Robot Miss Streak 4 | 1 4 . . . . . . . . . . . . . . . . . . . . . . . . . Penetration Max . | . . . . . . . . . . . . . . . . . . . . . . . . . . . Secondary Targets 1 | . 1 . . . . . . . . . . . . . . . . . . . . . . . . . Max Gunslinging Chain 1 | . 1 . . . . . . . . . . . . . . . . . . . . . . . . . Shots Hit Robots 696 | . 38 6 . 14 76 63 13 . 10 33 7 5 . 36 38 61 24 4 76 22 12 17 9 61 16 55 Core Hits 308 | 1 13 2 . 7 30 28 1 . 5 17 5 3 . 21 13 20 10 2 39 17 2 9 2 32 6 23 Critical Hits 18 | . . . . 1 4 4 1 . . . . . . 1 1 1 1 . 1 . . . . 3 . . Critical Kills 11 | . . . . . 2 4 . . . . . . . . . . 1 . 1 . . . . 3 . . Critical Parts Destroyed 7 | . . . . 1 2 . 1 . . . . . . 1 1 1 . . . . . . . . . . Melee Attacks 909 | . 14 26 . 32 99 97 17 . 13 57 8 9 . 43 45 65 25 8 87 28 15 20 12 77 52 60 Impact 8 | . 3 . . . . . . . . . . . . . . . . . . . . . . . . 5 Slashing 666 | . 11 26 . 32 99 55 9 . 7 28 4 4 . 22 27 27 16 6 60 16 15 20 11 76 52 43 Piercing 216 | . . . . . . 42 8 . 6 29 4 4 . 21 18 25 9 2 27 12 . . . . . 9 Sneak Attacks 62 | . 2 1 . . 5 8 5 . 2 2 . . . . 1 18 . . 7 3 . . . 1 4 3 Combat Hostiles 18 | . . . . . 1 2 5 . 2 1 . . . . . 4 . . 1 . . . . 1 . 1 Follow-up Attacks 63 | . . 1 . 2 8 10 2 . 2 2 3 . . 2 1 4 2 . 7 2 . . . 4 2 9 Damage Inflicted 36423 | 12 681 195 . 284 2870 2870 742 . 515 1481 271 142 . 1444 1537 2409 963 178 4312 1666 860 1612 1808 5257 1746 2568 Guns 445 | 12 433 . . . . . . . . . . . . . . . . . . . . . . . . . Cannons . | . . . . . . . . . . . . . . . . . . . . . . . . . . . Explosions 1044 | . . . . . . . . . . . . . . . . . . . 684 360 . . . . . . Melee 34934 | . 248 195 . 284 2870 2870 742 . 515 1481 271 142 . 1444 1537 2409 963 178 3628 1306 860 1612 1808 5257 1746 2568 Ramming . | . . . . . . . . . . . . . . . . . . . . . . . . . . . Kinetic . | . . . . . . . . . . . . . . . . . . . . . . . . . . . Thermal 805 | 12 433 . . . . . . . . . . . . . . . . . . 360 . . . . . . Explosive . | . . . . . . . . . . . . . . . . . . . . . . . . . . . Electromagnetic 684 | . . . . . . . . . . . . . . . . . . . 684 . . . . . . . Impact 258 | . 68 . . . . . . . . . . . . . . . . . . . . . . . . 190 Slashing 26511 | . 180 195 . 284 2870 1205 576 . 128 427 165 41 . 794 859 1438 682 121 2604 578 860 1612 1808 5257 1746 2081 Piercing 8165 | . . . . . . 1665 166 . 387 1054 106 101 . 650 678 971 281 57 1024 728 . . . . . 297 Highest Corruption 30 | . . . . . . . . . . . . . . . . 1 1 1 30 . . . . . 9 13 Average Corruption 5 | . . . . . . . . . . . . . . . . 1 1 1 3 . . . . . 9 9 Corruption Purged . | . . . . . . . . . . . . . . . . . . . . . . . . . . . Effects 44 | . . . . . . . . . . . . . . . . 2 . . 8 . . . . . 8 26 Message Errors 10 | . . . . . . . . . . . . . . . . 1 . . 1 . . . . . 2 6 Matter Fused 9 | . . . . . . . . . . . . . . . . . . . 1 . . . . . 5 3 Heat Flow Errors 4 | . . . . . . . . . . . . . . . . . . . . . . . . . . 4 Energy Discharges 1 | . . . . . . . . . . . . . . . . . . . . . . . . . . 1 Parts Rejected 1 | . . . . . . . . . . . . . . . . . . . . . . . . . 1 . Data Loss (minor) 4 | . . . . . . . . . . . . . . . . . . . 1 . . . . . . 3 Data Loss (major) 1 | . . . . . . . . . . . . . . . . . . . 1 . . . . . . . Misdirections 1 | . . . . . . . . . . . . . . . . . . . 1 . . . . . . . Targeting Errors 13 | . . . . . . . . . . . . . . . . 1 . . 3 . . . . . . 9 Overload Shots . | . . . . . . . . . . . . . . . . . . . . . . . . . . . Overflow Damage 4006 | . 35 12 . . 58 209 16 . . 63 . . . . 72 158 40 . 356 232 47 341 704 1191 244 228 Projectiles . | . . . . . . . . . . . . . . . . . . . . . . . . . . . Explosions 227 | . . . . . . . . . . . . . . . . . . . 82 145 . . . . . . Melee 3779 | . 35 12 . . 58 209 16 . . 63 . . . . 72 158 40 . 274 87 47 341 704 1191 244 228 Knockbacks 2 | . 1 . . . . . . . . . . . . . . . . . . . . . . . . 1 Impact 2 | . 1 . . . . . . . . . . . . . . . . . . . . . . . . 1 Kinetic . | . . . . . . . . . . . . . . . . . . . . . . . . . . . Secondary . | . . . . . . . . . . . . . . . . . . . . . . . . . . . Self-Inflicted Damage 178 | . . . . . . . . . . . . . . . . . . . 178 . . . . . . . Shots 2 | . . . . . . . . . . . . . . . . . . . 2 . . . . . . . Rammed . | . . . . . . . . . . . . . . . . . . . . . . . . . . . Targets Rammed . | . . . . . . . . . . . . . . . . . . . . . . . . . . . Kicked . | . . . . . . . . . . . . . . . . . . . . . . . . . . . Crushed . | . . . . . . . . . . . . . . . . . . . . . . . . . . . Highest Temperature 189 | 10 140 . . . . 1 . . . 2 . . . . 2 4 . . . . . . . . 169 189 Average Temperature 58 | 7 57 . . . . 1 . . . 2 . . . . 2 4 . . . . . . . . 100 90 Received Heat Transfer 2824 | . 138 . . 48 207 255 54 . 33 171 . . . 150 180 332 56 63 225 57 45 72 . 339 51 348 Siege Activations . | . . . . . . . . . . . . . . . . . . . . . . . . . . . Robots Corrupted . | . . . . . . . . . . . . . . . . . . . . . . . . . . . Combat Hostiles . | . . . . . . . . . . . . . . . . . . . . . . . . . . . Parts Fried 11 | . 1 . . . . . . . . . . . . . . . . . 10 . . . . . . . Impact Corruptions 3 | . 2 . . . . . . . . . . . . . . . . . . . . . . . . 1 Robots Melted 1 | . 1 . . . . . . . . . . . . . . . . . . . . . . . . . Combat Hostiles 1 | . 1 . . . . . . . . . . . . . . . . . . . . . . . . . Parts Melted 3 | . 2 . . . . . . . . . . . . . . . . . . . . 1 . . . . Heat Transferred 1458 | 37 1221 . . . . . . . . . . . . . . . . . . 200 . . . . . . Parts Sabotaged . | . . . . . . . . . . . . . . . . . . . . . . . . . . . Parts Stolen . | . . . . . . . . . . . . . . . . . . . . . . . . . . . Parts Stripped . | . . . . . . . . . . . . . . . . . . . . . . . . . . . Power Chain Reactions 1 | . . . . . . . . . . . . . . . . . . . 1 . . . . . . . Missiles Intercepted . | . . . . . . . . . . . . . . . . . . . . . . . . . . . Alert | -11 -10 -10 -10 -9 -8 -7 -7 -7 -6 -6 -6 -6 -6 -5 -5 -5 -5 -5 -5 -4 -4 -4 -4 -3 -3 -3 ------- Run | Scr Mat Min Exi Min Mat Fac Low Dat Pro Fac Low Low Zio Pro Fac Ext Cet Arc Hub Fac Upp Upp Zhi Pro Res Tes Peak Influence 1069 | 5 227 103 . 118 685 819 . . . 307 . . . . 367 866 1069 739 1004 579 . . . . 388 319 Initial 484 | . 3 3 . . . 311 . . . 100 . . . . 154 179 484 427 258 343 . . . . 48 150 Average 308 | 3 88 46 . 77 303 534 . . . 211 . . . . 268 575 789 684 461 376 . . . . 142 145 Maximum Alert Level 3 | . 1 . . . 2 3 . . . 1 . . . . 1 3 3 3 3 2 . . . . 1 1 Low Security (%) 40 | 100 92 100 . 100 26 . . . . 28 . . . . 33 2 . . 10 10 . . . . 56 82 Level 1 28 | . 7 . . . 45 30 . . . 71 . . . . 66 18 . . 31 36 . . . . 43 17 Level 2 21 | . . . . . 28 49 . . . . . . . . . 44 51 27 50 52 . . . . . . Level 3 8 | . . . . . . 20 . . . . . . . . . 34 48 72 8 . . . . . . . Level 4 . | . . . . . . . . . . . . . . . . . . . . . . . . . . . Level 5 . | . . . . . . . . . . . . . . . . . . . . . . . . . . . High Security . | . . . . . . . . . . . . . . . . . . . . . . . . . . . Max Security . | . . . . . . . . . . . . . . . . . . . . . . . . . . . Squads Dispatched 28 | . 1 . . . . 2 . . . 5 . . . . 1 4 . . 2 1 . . . . 5 7 Investigation 6 | . . . . . . . . . . 3 . . . . . . . . 1 . . . . . 2 . Extermination 3 | . . . . . . . . . . 1 . . . . 1 . . . . . . . . . . 1 Reinforcement 15 | . 1 . . . . 2 . . . 1 . . . . . 4 . . . 1 . . . . 3 3 Assault 2 | . . . . . . . . . . . . . . . . . . . 1 . . . . . . 1 Garrison 2 | . . . . . . . . . . . . . . . . . . . . . . . . . . 2 Intercept . | . . . . . . . . . . . . . . . . . . . . . . . . . . . Construction Impeded . | . . . . . . . . . . . . . . . . . . . . . . . . . . . Haulers Reinforced 3 | . . . . . . 2 . . . . . . . . . . . . . . . . . . 1 . Stealth | -11 -10 -10 -10 -9 -8 -7 -7 -7 -6 -6 -6 -6 -6 -5 -5 -5 -5 -5 -5 -4 -4 -4 -4 -3 -3 -3 --------- Run | Scr Mat Min Exi Min Mat Fac Low Dat Pro Fac Low Low Zio Pro Fac Ext Cet Arc Hub Fac Upp Upp Zhi Pro Res Tes Distress Signals 17 | . 1 . . . 2 1 . . . . . . . . . 3 2 . 1 . . . . . 4 3 Communications Jammed 23 | . . . . . . . . . . . . . . . . . . . . . . . . . . 23 Distress Signals 23 | . . . . . . . . . . . . . . . . . . . . . . . . . . 23 Times Spotted 359 | . 13 3 . 11 36 26 11 . 7 18 3 7 . 20 7 36 16 4 44 15 2 11 . 34 16 19 Peak Tracking Total 13 | . 6 3 . 13 9 6 9 . 4 5 3 4 . 4 6 10 5 4 11 7 1 5 . 13 12 6 Tactical Retreats 36 | . 1 . . 2 3 3 . . . . . 2 . 2 1 5 . . 3 2 . 2 . 4 5 1 Traps | -11 -10 -10 -10 -9 -8 -7 -7 -7 -6 -6 -6 -6 -6 -5 -5 -5 -5 -5 -5 -4 -4 -4 -4 -3 -3 -3 ------- Run | Scr Mat Min Exi Min Mat Fac Low Dat Pro Fac Low Low Zio Pro Fac Ext Cet Arc Hub Fac Upp Upp Zhi Pro Res Tes Traps Triggered 9 | . . . . . . . . . . . . . . . 4 3 . . 2 . . . . . . . Indirectly 1 | . . . . . . . . . . . . . . . . . . . 1 . . . . . . . Trap Hack Attempts . | . . . . . . . . . . . . . . . . . . . . . . . . . . . Triggered . | . . . . . . . . . . . . . . . . . . . . . . . . . . . Disarmed 1 | . . . . . . . . . . . . . . . . . . . . 1 . . . . . . Reprogrammed 12 | . . . . . . . . . . . . . . . . . . . 6 . . . . . 6 . Reused 1 | . . . . . . . . . . . . . . . . . . . 1 . . . . . . . Traps Extracted . | . . . . . . . . . . . . . . . . . . . . . . . . . . . Installed 5 | . . 5 . . . . . . . . . . . . . . . . . . . . . . . . Triggered 3 | . . . . . . . . . . . . . . 2 . . . . 1 . . . . . . . Machines | -11 -10 -10 -10 -9 -8 -7 -7 -7 -6 -6 -6 -6 -6 -5 -5 -5 -5 -5 -5 -4 -4 -4 -4 -3 -3 -3 ---------- Run | Scr Mat Min Exi Min Mat Fac Low Dat Pro Fac Low Low Zio Pro Fac Ext Cet Arc Hub Fac Upp Upp Zhi Pro Res Tes Machines Disabled 34 | . 1 5 . . . . . . . 1 . . . . . 2 . 6 13 5 . . . 1 . . Max in Single Turn 6 | . 1 1 . . . . . . . 1 . . . . . 1 . 1 6 5 . . . 1 . . Garrison Access 7 | . . . . . . 2 . . . 1 . . . . 1 . . . 1 2 . . . . . . Network Hub 2 | . . . . . . . . . . . . . . . . . . . 2 . . . . . . . Machines Sabotaged . | . . . . . . . . . . . . . . . . . . . . . . . . . . . Garrisons Compromised . | . . . . . . . . . . . . . . . . . . . . . . . . . . . Overloaded Fab Kills . | . . . . . . . . . . . . . . . . . . . . . . . . . . . Fab Network Shutdowns . | . . . . . . . . . . . . . . . . . . . . . . . . . . . Hacking | -11 -10 -10 -10 -9 -8 -7 -7 -7 -6 -6 -6 -6 -6 -5 -5 -5 -5 -5 -5 -4 -4 -4 -4 -3 -3 -3 --------- Run | Scr Mat Min Exi Min Mat Fac Low Dat Pro Fac Low Low Zio Pro Fac Ext Cet Arc Hub Fac Upp Upp Zhi Pro Res Tes Machines Accessed 97 | . 7 . 4 1 4 12 . 4 . 9 . 1 1 . 3 6 3 1 13 6 . . 9 1 6 6 Terminals 62 | . 6 . . 1 4 8 . . . 8 . . . . 2 6 3 . 12 4 . . . 1 3 4 Fabricators 7 | . . . . . . 2 . . . . . . . . . . . . . . . . . . 3 2 Repair Stations . | . . . . . . . . . . . . . . . . . . . . . . . . . . . Recycling Units 1 | . 1 . . . . . . . . . . . . . . . . . . . . . . . . . Scanalyzers . | . . . . . . . . . . . . . . . . . . . . . . . . . . . Garrison Access 7 | . . . . . . 2 . . . 1 . . . . 1 . . . 1 2 . . . . . . Total Hacks 470 | . 26 . 4 3 17 30 . 26 . 25 . 6 7 . 9 28 10 10 58 46 . . 48 4 65 48 Successful 331 | . 18 . 4 1 8 15 . 26 . 9 . 6 7 . 2 18 6 10 53 34 . . 48 4 39 23 Failed 138 | . 8 . . 2 9 15 . . . 16 . . . . 7 10 4 . 5 11 . . . . 26 25 Catastrophic 19 | . 2 . . 1 4 4 . . . 3 . . . . . . . . . 2 . . . . . 3 Database Lockouts 1 | . . . . . . . . . . . . . . . . . . . . 1 . . . . . . Manual 173 | . 13 . . 1 13 21 . . . 16 . . 1 . 4 22 2 . 33 15 . . . . 21 11 Terminals 334 | . 24 . . 3 17 25 . . . 24 . . . . 7 28 10 . 56 43 . . . 4 51 42 Fabricators 23 | . . . . . . 3 . . . . . . . . . . . . . . . . . . 14 6 Repair Stations . | . . . . . . . . . . . . . . . . . . . . . . . . . . . Recycling Units 2 | . 2 . . . . . . . . . . . . . . . . . . . . . . . . . Scanalyzers . | . . . . . . . . . . . . . . . . . . . . . . . . . . . Garrison Access 10 | . . . . . . 2 . . . 1 . . . . 2 . . . 2 3 . . . . . . Terminal Hacks 234 | . 9 . 4 1 4 3 . 26 . 2 . 6 7 . . 7 6 10 31 25 . . 48 4 26 15 Record 97 | . 1 . 4 . . . . 11 . . . 6 . . . . 5 10 4 11 . . 36 4 3 2 Part Schematic 21 | . . . . . . . . 5 . . . . 7 . . . . . . 1 . . 4 . 4 . Robot Schematic 8 | . . . . . . . . 7 . . . . . . . . . . . . . . . . 1 . Robot Analysis 9 | . . . . . 1 . . . . 1 . . . . . 1 . . 2 . . . 4 . . . Prototype ID Bank 25 | . . . . . 3 1 . 3 . . . . . . . 3 . . 6 1 . . 4 . 2 2 Open Door 1 | . . . . . . . . . . . . . . . . . 1 . . . . . . . . . Level Access Points 5 | . 1 . . 1 . . . . . . . . . . . 1 . . 1 1 . . . . . . Branch Access Points 8 | . 1 . . . . 1 . . . 1 . . . . . 1 . . 1 1 . . . . 1 1 Emergency Access Points 3 | . 2 . . . . . . . . . . . . . . . . . . . . . . . 1 . Machine Index 2 | . . . . . . . . . . . . . . . . . . . . 1 . . . . 1 . Terminal Index 2 | . . . . . . . . . . . . . . . . . . . 1 . . . . . 1 . Fabricator Index 1 | . . . . . . . . . . . . . . . . . . . . . . . . . 1 . Repair Station Index 1 | . . . . . . . . . . . . . . . . . . . . . . . . . 1 . Alert Level 6 | . . . . . . 1 . . . . . . . . . . . . 2 1 . . . . 1 1 Unreport Threat 12 | . 1 . . . . . . . . . . . . . . . . . 6 2 . . . . 1 2 Locate Traps 5 | . 1 . . . . . . . . . . . . . . 1 . . 1 . . . . . 1 1 Disarm Traps 1 | . . . . . . . . . . . . . . . . . . . . 1 . . . . . . Reprogram Traps 3 | . . . . . . . . . . . . . . . . . . . 2 . . . . . 1 . Security Status 2 | . . . . . . . . . . . . . . . . . . . 1 1 . . . . . . Hauler Manifests 1 | . . . . . . . . . . . . . . . . . . . . 1 . . . . . . Registered Components 4 | . . . . . . . . . . . . . . . . . . . . 1 . . . . 2 1 Registered Prototypes 5 | . . . . . . . . . . . . . . . . . . . 1 1 . . . . 2 1 Zone Layout 9 | . 2 . . . . . . . . . . . . . . . . . 3 1 . . . . 2 1 Protovariant Controls 3 | . . . . . . . . . . . . . . . . . . . . . . . . . . 3 Fabricator Hacks 11 | . . . . . . . . . . . . . . . . . . . . . . . . . 8 3 Network Status 1 | . . . . . . . . . . . . . . . . . . . . . . . . . 1 . Load Schematic 4 | . . . . . . . . . . . . . . . . . . . . . . . . . 3 1 Build 6 | . . . . . . . . . . . . . . . . . . . . . . . . . 4 2 Repair Station Hacks . | . . . . . . . . . . . . . . . . . . . . . . . . . . . Recycling Unit Hacks 2 | . 2 . . . . . . . . . . . . . . . . . . . . . . . . . Process 1 | . 1 . . . . . . . . . . . . . . . . . . . . . . . . . Report Inventory 1 | . 1 . . . . . . . . . . . . . . . . . . . . . . . . . Scanalyzer . | . . . . . . . . . . . . . . . . . . . . . . . . . . . Garrison Access Hacks 8 | . . . . . . 2 . . . 1 . . . . 1 . . . 2 2 . . . . . . Unlock Access 1 | . . . . . . . . . . . . . . . . . . . 1 . . . . . . . Seal Access 7 | . . . . . . 2 . . . 1 . . . . 1 . . . 1 2 . . . . . . Unauthorized Hacks 76 | . 7 . . . 4 10 . . . 6 . . . . 1 11 . . 20 7 . . . . 5 5 Terminals 76 | . 7 . . . 4 10 . . . 6 . . . . 1 11 . . 20 7 . . . . 5 5 Track 7 | . 2 . . . . . . . . . . . . . . 2 . . 1 . . . . . 1 1 Assimilate 7 | . . . . . . 2 . . . . . . . . . 1 . . 3 1 . . . . . . Botnet 49 | . 5 . . . 4 7 . . . 5 . . . . 1 6 . . 11 4 . . . . 3 3 Detonate 4 | . . . . . . . . . . . . . . . . . . . 3 1 . . . . . . Disrupt 3 | . . . . . . . . . . . . . . . . 1 . . 1 1 . . . . . . Operators 6 | . . . . . . 1 . . . 1 . . . . . 1 . . 1 . . . . . 1 1 Fabricators . | . . . . . . . . . . . . . . . . . . . . . . . . . . . Repair Stations . | . . . . . . . . . . . . . . . . . . . . . . . . . . . Recycling Units . | . . . . . . . . . . . . . . . . . . . . . . . . . . . Scanalyzers . | . . . . . . . . . . . . . . . . . . . . . . . . . . . Garrison Access . | . . . . . . . . . . . . . . . . . . . . . . . . . . . Data Cores Recovered 2 | . . . . . . 1 . . . . . . . . . . . . 1 . . . . . . . Used 1 | . . . . . . 1 . . . . . . . . . . . . . . . . . . . . Hacking Detections 59 | . 5 . . 1 4 10 . . . 8 . . . . 2 6 2 . 12 3 . . . . 2 4 Full Trace Events 1 | . . . . . . . . . . 1 . . . . . . . . . . . . . . . . Feedback Events . | . . . . . . . . . . . . . . . . . . . . . . . . . . . Feedback Blocked . | . . . . . . . . . . . . . . . . . . . . . . . . . . . Robot Schematics Acquired 8 | . . . . . . . . 7 . . . . . . . . . . . . . . . . 1 . Robots Built 5 | . . . . . . . . . . . . . . . . . . . . . . . . . 1 4 Matter 669 | . . . . . . . . . . . . . . . . . . . . . . . . . 285 384 Time 178 | . . . . . . . . . . . . . . . . . . . . . . . . . 76 102 Total Robot Build Rating 37 | . . . . . . . . . . . . . . . . . . . . . . . . . 5 32 Part Schematics Acquired 21 | . . . . . . . . 5 . . . . 7 . . . . . . 1 . . 4 . 4 . Parts Built 3 | . . . . . . . . . . . . . . . . . . . . . . . . . 2 1 Matter 888 | . . . . . . . . . . . . . . . . . . . . . . . . . 570 318 Time 208 | . . . . . . . . . . . . . . . . . . . . . . . . . 152 56 Total Part Build Rating 16 | . . . . . . . . . . . . . . . . . . . . . . . . . 10 6 Parts Repaired . | . . . . . . . . . . . . . . . . . . . . . . . . . . . Time . | . . . . . . . . . . . . . . . . . . . . . . . . . . . Parts Recycled . | . . . . . . . . . . . . . . . . . . . . . . . . . . . Recycled Matter 3 | . 3 . . . . . . . . . . . . . . . . . . . . . . . . . Retrieved Matter . | . . . . . . . . . . . . . . . . . . . . . . . . . . . Retrieved Components . | . . . . . . . . . . . . . . . . . . . . . . . . . . . Parts Scanalyzed . | . . . . . . . . . . . . . . . . . . . . . . . . . . . Part Schematics Acquired . | . . . . . . . . . . . . . . . . . . . . . . . . . . . Parts Damaged . | . . . . . . . . . . . . . . . . . . . . . . . . . . . Bothacking | -11 -10 -10 -10 -9 -8 -7 -7 -7 -6 -6 -6 -6 -6 -5 -5 -5 -5 -5 -5 -4 -4 -4 -4 -3 -3 -3 ------------ Run | Scr Mat Min Exi Min Mat Fac Low Dat Pro Fac Low Low Zio Pro Fac Ext Cet Arc Hub Fac Upp Upp Zhi Pro Res Tes Used RIF Installer . | . . . . . . . . . . . . . . . . . . . . . . . . . . . Robots Hacked . | . . . . . . . . . . . . . . . . . . . . . . . . . . . Non-combat . | . . . . . . . . . . . . . . . . . . . . . . . . . . . Combat . | . . . . . . . . . . . . . . . . . . . . . . . . . . . Robot Hacks Applied . | . . . . . . . . . . . . . . . . . . . . . . . . . . . Relay Couplers Released 1 | . . . . . . . . . . . . . . . . . . . . . . . . . . 1 Programmers 1 | . . . . . . . . . . . . . . . . . . . . . . . . . . 1 Robots Rewired 7 | . . . . . . . . . . . . . . . . 7 . . . . . . . . . . Allies Hacked . | . . . . . . . . . . . . . . . . . . . . . . . . . . . Hacks Repelled . | . . . . . . . . . . . . . . . . . . . . . . . . . . . Allies | -11 -10 -10 -10 -9 -8 -7 -7 -7 -6 -6 -6 -6 -6 -5 -5 -5 -5 -5 -5 -4 -4 -4 -4 -3 -3 -3 -------- Run | Scr Mat Min Exi Min Mat Fac Low Dat Pro Fac Low Low Zio Pro Fac Ext Cet Arc Hub Fac Upp Upp Zhi Pro Res Tes Total Allies 31 | . . . . 2 . 1 . . 1 . . . . . . 13 5 . 4 . . . . . 1 4 Largest Group 14 | . . . . 2 2 1 . . 1 1 . . . . . 10 13 13 14 . . . . . 1 4 Highest-Rated Group 806 | . . . . 43 43 10 . . 94 94 . . . . . 403 806 806 649 . . . . . 18 120 Highest-Rated Ally 156 | . . . . 31 31 10 . . 94 94 . . . . . 156 156 156 94 . . . . . 18 30 Total Orders 3 | . . . . . . 1 . . . . . . . . . . . . 2 . . . . . . . STAY 1 | . . . . . . . . . . . . . . . . . . . 1 . . . . . . . ROAM 1 | . . . . . . 1 . . . . . . . . . . . . . . . . . . . . FOLLOW 1 | . . . . . . . . . . . . . . . . . . . 1 . . . . . . . Ally Attacks 251 | . . . . 2 7 . . . 3 . . . . . . 83 50 22 61 . . . . . . 23 Total Damage 5781 | . . . . 21 129 . . . 148 . . . . . . 1791 1228 686 1454 . . . . . . 324 Kills 40 | . . . . 1 . . . . 1 . . . . . . 14 10 5 9 . . . . . . . Allies Corrupted 5 | . . . . . . . . . . . . . . . . . . . 5 . . . . . . . Allies Melted 1 | . . . . . . . . . . . . . . . . 1 . . . . . . . . . . Intel | -11 -10 -10 -10 -9 -8 -7 -7 -7 -6 -6 -6 -6 -6 -5 -5 -5 -5 -5 -5 -4 -4 -4 -4 -3 -3 -3 ------- Run | Scr Mat Min Exi Min Mat Fac Low Dat Pro Fac Low Low Zio Pro Fac Ext Cet Arc Hub Fac Upp Upp Zhi Pro Res Tes Robot Analysis Total 9 | . . . . . 1 . . . . 1 . . . . . 1 . . 2 . . . 4 . . . Derelict Logs Recovered 16 | . . 1 . 2 . . 1 . 2 . 3 2 . . . . . . . . 2 3 . . . . Drone Launches . | . . . . . . . . . . . . . . . . . . . . . . . . . . . Drone Recoveries . | . . . . . . . . . . . . . . . . . . . . . . . . . . . Exploration | -11 -10 -10 -10 -9 -8 -7 -7 -7 -6 -6 -6 -6 -6 -5 -5 -5 -5 -5 -5 -4 -4 -4 -4 -3 -3 -3 ------------- Run | Scr Mat Min Exi Min Mat Fac Low Dat Pro Fac Low Low Zio Pro Fac Ext Cet Arc Hub Fac Upp Upp Zhi Pro Res Tes Turns Passed 11846 | 51 569 441 1077 433 690 882 151 33 367 560 297 274 287 483 269 527 251 84 601 280 479 236 144 1282 548 550 Spaces Moved 20565 | 41 524 446 1078 493 1008 2071 350 127 998 1426 1060 723 1060 1333 434 647 390 128 970 741 990 518 243 1392 838 536 Core 2 | 1 . . . . . . . . . . . . . . . . . . . . . . 1 . . . Treads . | . . . . . . . . . . . . . . . . . . . . . . . . . . . Legs . | . . . . . . . . . . . . . . . . . . . . . . . . . . . Wheels 302 | 40 262 . . . . . . . . . . . . . . . . . . . . . . . . . Hover 5178 | . 262 446 1078 493 35 . . . . . . . . . . . . . . . . . 98 1392 838 536 Flight 15083 | . . . . . 973 2071 350 127 998 1426 1060 723 1060 1333 434 647 390 128 970 741 990 518 144 . . . Fastest Speed 24 | 50 56 56 56 56 29 26 26 26 26 26 26 26 26 26 24 24 27 27 24 27 30 30 30 40 36 45 Average Speed 33 | 98 78 56 56 56 34 27 26 26 26 26 26 26 26 26 25 26 27 27 26 27 30 30 34 41 42 45 Slowest Speed 150 | 100 100 56 56 56 105 32 26 26 26 26 26 26 26 26 27 27 27 27 27 30 30 30 150 42 45 45 Overloaded Moves 78 | . . . . . . . . . . . . . . . 26 5 . . 40 . . . . . 7 . Propulsion Burnouts . | . . . . . . . . . . . . . . . . . . . . . . . . . . . Robots Hopped 11 | . . . . . 3 3 . . . . . . . . . 2 . . 3 . . . . . . . Cave-ins Triggered 2 | . 1 . . . . . . . . . . . . . . . . . . . . . . . 1 . Teleports 1 | . . . . . . . . . . . . . . . . . . . . . . . 1 . . . Exploration Rate (%) 68 | 3 84 83 94 79 75 50 52 76 95 39 99 69 90 98 11 79 94 93 78 28 82 63 62 98 21 49 Regions Visited 26 Branch Regions 19 Pre-discovered Areas 10 | . . . . 2 . . . 1 . . 1 2 . . . . . . . . . 1 3 . . . Known Exits Taken 24 | . 1 1 . 1 1 1 1 1 1 1 1 1 1 1 1 1 1 1 1 1 1 1 1 1 1 . Unknown Exits Taken 2 | 1 . . 1 . . . . . . . . . . . . . . . . . . . . . . . Scrap Searched 34 | . . 1 . 3 . . . . 3 . 3 5 3 5 . . . . . . 3 5 . 3 . . Spaces Dug 129 | . 2 4 . 13 10 20 3 . . 14 1 3 . 1 4 1 . . 4 4 3 1 3 9 26 3 Terrain Destroyed 485 | . 2 4 . 13 10 20 3 . . 14 1 3 . 1 4 1 . . 328 36 3 1 3 9 26 3 Melee 129 | . 2 4 . 13 10 20 3 . . 14 1 3 . 1 4 1 . . 4 4 3 1 3 9 26 3 Projectile . | . . . . . . . . . . . . . . . . . . . . . . . . . . . AOE 356 | . . . . . . . . . . . . . . . . . . . 324 32 . . . . . . Terrain Rammed . | . . . . . . . . . . . . . . . . . . . . . . . . . . . Walls Destroyed . | . . . . . . . . . . . . . . . . . . . . . . . . . . . Machines Disabled . | . . . . . . . . . . . . . . . . . . . . . . . . . . . Actions | -11 -10 -10 -10 -9 -8 -7 -7 -7 -6 -6 -6 -6 -6 -5 -5 -5 -5 -5 -5 -4 -4 -4 -4 -3 -3 -3 --------- Run | Scr Mat Min Exi Min Mat Fac Low Dat Pro Fac Low Low Zio Pro Fac Ext Cet Arc Hub Fac Upp Upp Zhi Pro Res Tes Total 24325 | 48 611 590 1550 593 1215 2292 394 126 1096 1565 1075 800 1072 1429 547 941 513 169 1224 785 1150 568 280 1957 949 786 Wait 2110 | 1 17 104 473 63 53 82 22 . 77 71 . 53 3 37 19 80 65 35 119 8 123 7 . 421 30 147 Move 20517 | 40 523 445 1077 492 1001 2064 349 126 997 1425 1059 722 1059 1332 433 642 389 127 964 740 989 517 242 1391 836 536 Hop 10 | . . . . . 3 3 . . . . . . . . . 2 . . 2 . . . . . . . Pick Up 41 | 1 3 5 . 1 4 1 . . 1 1 . 3 3 . . . . . 3 1 . 2 4 2 3 3 Fast Attach 82 | 5 5 . . 1 11 11 . . . 2 . 3 2 . . 5 1 . 1 4 . 3 8 3 13 4 Attach 18 | . 1 . . . 2 1 . . . 1 . . . 1 . 1 . . 3 . . 2 3 1 . 2 Detach 5 | . . . . . . . . . . . . . . . . 1 . . 3 . . . 1 . . . Swap 32 | . 1 . . 1 5 7 . . . 3 . . . . 2 3 2 . 4 1 . 1 1 1 . . Drop 108 | . 6 5 . 2 17 15 . . 1 4 . 3 5 . 1 5 3 . 4 6 . 2 9 2 12 6 Fire 43 | 1 37 . . . . . . . . . . . . . . . . . 5 . . . . . . . Melee 787 | . 13 24 . 27 83 79 14 . 8 48 5 8 . 38 42 60 23 7 76 25 15 20 12 70 40 50 Ram . | . . . . . . . . . . . . . . . . . . . . . . . . . . . Kick . | . . . . . . . . . . . . . . . . . . . . . . . . . . . Crush . | . . . . . . . . . . . . . . . . . . . . . . . . . . . Escape Stasis 114 | . . . . . . . . . . . . . . . 46 54 . . . . . . . . 1 13 Rewire . | . . . . . . . . . . . . . . . . . . . . . . . . . . . Trap 5 | . . 5 . . . . . . . . . . . . . . . . . . . . . . . . Miscellaneous 453 | . 5 2 . 6 36 29 9 . 12 10 11 8 . 21 4 88 30 . 40 . 23 14 . 66 14 25 Route ------- -11/Scrapyard -10/Materials (discovered 4 exits: *Mat x3 / *Min) -10/Mines (discovered 3 exits: *Mat x2 / *Exi) -10/Exiles (discovered 2 exits: *Min x2) -9/Mines (discovered 2 exits: *Mat x2) -8/Materials (discovered 3 exits: *Fac x2 / *Sto) -7/Factory (discovered 4 exits: *Fac x2 / *Low x2) -7/Lower Caves (discovered 2 exits: Low / *Dat) -7/Data Miner -6/Proximity Caves -6/Factory (discovered 3 exits: *Fac / *Low x2) -6/Lower Caves -6/Lower Caves (discovered 2 exits: *Fac / *Zio) -6/Zion -5/Proximity Caves -5/Factory -5/Extension (discovered 3 exits: *Fac x2 / *Cet) -5/Cetus (discovered 3 exits: *Fac x2 / *Arc) -5/Archives (discovered 3 exits: *Fac / *Hub x2) -5/Hub_04(d) (discovered 4 exits: *Fac x4) -4/Factory (discovered 6 exits: *Res x4 / *Upp x2) -4/Upper Caves -4/Upper Caves (discovered 2 exits: *Res / *Zhi) -4/Zhirov -3/Proximity Caves -3/Research (discovered 3 exits: Arm / *Tes x2) -3/Testing History --------- Turn | Location | Event 1 | -11/Scrapyard | Upgraded with Utility slot (x1) 16 | -11/Scrapyard | Discovered new exit (range 16) 52 | -11/Scrapyard | Entered Materials 139 | -10/Materials | Discovered new exit (range 16) 194 | -10/Materials | Upgraded with Propulsion slot (x1) 226 | -10/Materials | Upgraded with Weapon slot (x1) 277 | -10/Materials | Discovered new exit (range 17) 292 | -10/Materials | Identified exit to Mines 306 | -10/Materials | Build established: Mutant 339 | -10/Materials | Identified exit to Materials 613 | -10/Materials | Crushed by falling debris 621 | -10/Materials | Entered Mines 623 | -10/Mines | Reached level 2 624 | -10/Mines | Upgraded with Utility slot (x1) 631 | -10/Mines | Identified exit to Exiles 642 | -10/Mines | Found a hidden stash of uninstalled traps 717 | -10/Mines | Build established: Scavenger-Mutant 783 | -10/Mines | Discovered exit to Materials (range 9) 831 | -10/Mines | Discovered exit to Materials (range 10) 1060 | -10/Mines | Deemed a non-threat by the Exiles lab entrance 1062 | -10/Mines | Entered Exiles 1062 | -10/Exiles | Found Exiles lab abandoned 1660 | -10/Exiles | Discovered new exit (range 10) 1824 | -10/Exiles | Discovered new exit (range 14) 2139 | -10/Exiles | Entered Mines 2157 | -9/Mines | Discovered new exit (range 8) 2160 | -9/Mines | Learned location of Storage (-8) 2206 | -9/Mines | Reached level 3 2245 | -9/Mines | Assembled infested the area 2253 | -9/Mines | Discovered new exit (range 15) 2277 | -9/Mines | Found a damaged Exp. Sensor Array with a note attached 2279 | -9/Mines | Found Prototype Device 2357 | -9/Mines | Identified exit to Materials 2462 | -9/Mines | Received a Rocket Launcher from a helpful Derelict 2572 | -9/Mines | Entered Materials 2572 | -8/Materials | Accompanied by 2 allies 2574 | -8/Materials | Reached level 4 2577 | -8/Materials | Led the pair of lost Derelicts to an unsafe place 2579 | -8/Materials | Upgraded with Utility slot (x1) 2748 | -8/Materials | Core integrity fell below 50% 2791 | -8/Materials | Destroyed 7 combat bots 2870 | -8/Materials | Reached level 5 2873 | -8/Materials | Upgraded with Propulsion slot (x1) 2982 | -8/Materials | Build established: Sprinter 3041 | -8/Materials | Discovered new exit (range 10) 3061 | -8/Materials | Discovered new exit (range 15) 3069 | -8/Materials | Identified exit to Storage 3132 | -8/Materials | Identified exit to Factory 3182 | -8/Materials | Reached level 6 3187 | -8/Materials | Upgraded with Utility slot (x1) 3253 | -8/Materials | Discovered exit to Factory (range 9) 3262 | -8/Materials | Entered Factory 3264 | -7/Factory | Reached level 7 3394 | -7/Factory | Upgraded with Power slot (x1) 3432 | -7/Factory | Upgraded with Propulsion slot (x1) 3566 | -7/Factory | Discovered new exit (range 11) 3632 | -7/Factory | Identified exit to Factory 3699 | -7/Factory | Discovered exit to Factory (range 15) 3752 | -7/Factory | Reached level 8 3816 | -7/Factory | Identified exit to Lower Caves 3948 | -7/Factory | Reached level 9 3951 | -7/Factory | Upgraded with Utility slot (x1) 4144 | -7/Factory | Entered Lower Caves 4198 | -7/Lower Caves | Encountered a Warlord checkpoint 4198 | -7/Lower Caves | Spotted B-75 Beast 4257 | -7/Lower Caves | Destroyed B-75 Beast 4280 | -7/Lower Caves | Identified exit to Lower Caves 4288 | -7/Lower Caves | Attracted the attention of an 0b10 outpost 4290 | -7/Lower Caves | A Derelict revealed a hidden shortcut to meet someone special 4292 | -7/Lower Caves | Identified exit to Data Miner 4295 | -7/Lower Caves | Entered Data Miner 4295 | -7/Data Miner | Discovered new exit (range 6) 4297 | -7/Data Miner | Identified exit to Proximity Caves 4301 | -7/Data Miner | Met Data Miner 4301 | -7/Data Miner | Reached level 10 4307 | -7/Data Miner | Learned location of Section 7 (-2) 4307 | -7/Data Miner | Acquired the access code to Warlord's prototype stash 4312 | -7/Data Miner | Received God Mode back door access code from Data Miner 4328 | -7/Data Miner | Entered Proximity Caves 4329 | -6/Proximity Caves | Learned Factory terminal intel 4405 | -6/Proximity Caves | Escorted by Enhanced Grunt 4445 | -6/Proximity Caves | Reached level 11 4477 | -6/Proximity Caves | Learned 12 Factory zone layouts 4623 | -6/Proximity Caves | Spotted B-75 Beast 4625 | -6/Proximity Caves | Discovered exit to Factory (range 16) 4658 | -6/Proximity Caves | Allies destroyed B-75 Beast 4695 | -6/Proximity Caves | Entered Factory 4695 | -6/Factory | Accompanied by 1 ally 4697 | -6/Factory | Loaded intel: 20 terminal locations 4697 | -6/Factory | Reached level 12 4707 | -6/Factory | Spotted B-75 Beast 4721 | -6/Factory | Destroyed B-75 Beast 4889 | -6/Factory | Discovered new exit (range 16) 4893 | -6/Factory | Identified exit to Factory 4962 | -6/Factory | Incoming investigation squad redirected 5155 | -6/Factory | Incoming investigation squad redirected 5170 | -6/Factory | Reached level 13 5177 | -6/Factory | Upgraded with Weapon slot (x1) 5181 | -6/Factory | Identified exit to Lower Caves 5255 | -6/Factory | Entered Lower Caves 5266 | -6/Lower Caves | Learned Factory emergency access door positions 5363 | -6/Lower Caves | Learned 8 Factory zone layouts 5364 | -6/Lower Caves | Discovered new exit (range 8) 5367 | -6/Lower Caves | Identified exit to Lower Caves 5552 | -6/Lower Caves | Entered another Lower Caves area 5554 | -6/Lower Caves | Reached level 14 5596 | -6/Lower Caves | Discovered exit to Factory (range 8) 5671 | -6/Lower Caves | Learned Factory security intel 5725 | -6/Lower Caves | Learned location of Zion (-6) 5732 | -6/Lower Caves | Learned location of Extension (-5) 5732 | -6/Lower Caves | Learned Armory emergency access door positions 5732 | -6/Lower Caves | Learned Armory stockpile data 5732 | -6/Lower Caves | Learned Factory garrison access intel 5732 | -6/Lower Caves | Learned Armory garrison access intel 5785 | -6/Lower Caves | Discovered new exit (range 9) 5815 | -6/Lower Caves | Identified exit to Zion 5826 | -6/Lower Caves | Entered Zion 5839 | -6/Zion | Given the Hacking Drone Bay 5839 | -6/Zion | Found Prototype Device 5839 | -6/Zion | Identified Hacking Drone Bay 5848 | -6/Zion | Discovered new exit (range 11) 5852 | -6/Zion | Identified exit to Proximity Caves 5869 | -6/Zion | Given A8's code to call for help 5891 | -6/Zion | Learned Factory emergency access door positions 5903 | -6/Zion | Received a visual enhancement algorithm 5981 | -6/Zion | Build established: Hacker-Sprinter 6113 | -6/Zion | Entered Proximity Caves 6115 | -5/Proximity Caves | Reached level 15 6266 | -5/Proximity Caves | Reached level 16 6279 | -5/Proximity Caves | Upgraded with Utility slot (x1) 6290 | -5/Proximity Caves | Spotted B-75 Beast 6346 | -5/Proximity Caves | Discovered exit to Factory (range 10) 6514 | -5/Proximity Caves | Attracted the attention of an 0b10 checkpoint 6514 | -5/Proximity Caves | Reached level 17 6596 | -5/Proximity Caves | Entered Factory 6598 | -5/Factory | Reached level 18 6600 | -5/Factory | Loaded intel: 4 garrison access locations 6754 | -5/Factory | Core integrity fell below 50% 6780 | -5/Factory | Discovered new exit (range 17) 6806 | -5/Factory | Identified exit to Extension 6865 | -5/Factory | Entered Extension 6867 | -5/Extension | Reached level 19 6869 | -5/Extension | Upgraded with Utility slot (x1) 6872 | -5/Extension | Disrupted transfer network 6908 | -5/Extension | Rescued a captive Derelict 6909 | -5/Extension | Rescued a captive Derelict 6920 | -5/Extension | Identified exit to Cetus 6920 | -5/Extension | Identified exit to Factory 6938 | -5/Extension | Spotted B-75 Beast 6940 | -5/Extension | Spotted B-75 Beast 6961 | -5/Extension | Destroyed B-75 Beast 6975 | -5/Extension | Core integrity fell below 20% 6978 | -5/Extension | Allies destroyed B-75 Beast 6980 | -5/Extension | Reached level 20 7055 | -5/Extension | Rescued A7 7175 | -5/Extension | Build established: Hacker-Scout 7184 | -5/Extension | Rescued a captive Derelict 7184 | -5/Extension | Rescued a captive Derelict 7198 | -5/Extension | Rescued a captive Derelict 7256 | -5/Extension | Reached level 21 7392 | -5/Extension | Entered Cetus 7392 | -5/Cetus | Accompanied by 10 allies (A7) 7397 | -5/Cetus | Acquired a Cetus Manufacturing Module code from A7 7402 | -5/Cetus | Spotted Cetus Guard 7402 | -5/Cetus | Spotted Cetus Guard 7405 | -5/Cetus | Spotted Cetus Guard 7405 | -5/Cetus | Spotted Cetus Guard 7414 | -5/Cetus | Destroyed Cetus Guard 7420 | -5/Cetus | Destroyed Cetus Guard 7424 | -5/Cetus | Allies destroyed Cetus Guard 7444 | -5/Cetus | Discovered exit to Factory (range 17) 7463 | -5/Cetus | Started Cetus Manufacturing Module 7480 | -5/Cetus | Discovered new exit (range 17) 7485 | -5/Cetus | Identified exit to Archives 7488 | -5/Cetus | Manufactured an Enhanced Grunt 7501 | -5/Cetus | Escorted A7 to Cetus Mainframe 7513 | -5/Cetus | Manufactured an Enhanced Grunt 7523 | -5/Cetus | Reached level 22 7538 | -5/Cetus | Manufactured an Enhanced Grunt 7545 | -5/Cetus | Spotted Cetus Guard 7545 | -5/Cetus | Spotted Cetus Guard 7552 | -5/Cetus | Spotted Cetus Guard 7552 | -5/Cetus | Spotted Cetus Guard 7556 | -5/Cetus | Discovered exit to Factory (range 17) 7562 | -5/Cetus | Allies destroyed Cetus Guard 7563 | -5/Cetus | Manufactured an Enhanced Grunt 7564 | -5/Cetus | Allies destroyed Cetus Guard 7566 | -5/Cetus | Allies destroyed Cetus Guard 7569 | -5/Cetus | Allies destroyed Cetus Guard 7588 | -5/Cetus | Manufactured an Enhanced Grunt 7643 | -5/Cetus | Entered Archives 7643 | -5/Archives | Accompanied by 13 allies (A7) 7648 | -5/Archives | Received a hacking code to weaken MAIN.C 7651 | -5/Archives | Unable to access archive contents 7655 | -5/Archives | Discovered exit to Factory (range 13) 7666 | -5/Archives | Discovered new exit (range 16) 7667 | -5/Archives | Unable to access archive contents 7668 | -5/Archives | Discovered new exit (range 15) 7670 | -5/Archives | Unable to access archive contents 7683 | -5/Archives | Identified exit to Hub_04(d) 7727 | -5/Archives | Entered Hub_04(d) 7727 | -5/Hub_04(d) | Accompanied by 10 allies 7729 | -5/Hub_04(d) | Reached level 23 7732 | -5/Hub_04(d) | Discovered exit to Factory (range 13) 7736 | -5/Hub_04(d) | Allied Derelicts emerged from ambush trap array 8008 | -5/Hub_04(d) | Identified exit to Garrison 8071 | -5/Hub_04(d) | Network Hub disabled 8114 | -5/Hub_04(d) | Upgraded with Utility slot (x1) 8118 | -5/Hub_04(d) | Spotted Lightning 8118 | -5/Hub_04(d) | Spotted Lightning 8120 | -5/Hub_04(d) | Spotted Lightning 8121 | -5/Hub_04(d) | Spotted Lightning 8122 | -5/Hub_04(d) | Spotted Lightning 8122 | -5/Hub_04(d) | Spotted Lightning 8184 | -5/Hub_04(d) | Spotted Lightning 8185 | -5/Hub_04(d) | Spotted Lightning 8189 | -5/Hub_04(d) | Network Hub disabled 8189 | -5/Hub_04(d) | Spotted Lightning 8276 | -5/Hub_04(d) | System corruption reached 10% 8297 | -5/Hub_04(d) | Reached level 24 8297 | -5/Hub_04(d) | Destroyed Lightning 8321 | -5/Hub_04(d) | System corruption reached 30% 8327 | -5/Hub_04(d) | First assault squad dispatched 8328 | -5/Hub_04(d) | Entered Factory 8329 | -4/Factory | Core integrity fell below 50% 8393 | -4/Factory | Identified exit to Research 8393 | -4/Factory | Identified exit to Upper Caves 8393 | -4/Factory | Central database locked down 8404 | -4/Factory | Build established: Wizard-Scout 8498 | -4/Factory | Found Prototype Slashing Weapon 8498 | -4/Factory | Identified Centrium Greatsword 8520 | -4/Factory | Spotted B-86 Titan 8538 | -4/Factory | Core integrity fell below 20% 8605 | -4/Factory | Reached level 25 8608 | -4/Factory | Entered Upper Caves 8668 | -4/Upper Caves | Learned Research emergency access door positions 8673 | -4/Upper Caves | Encountered a Warlord checkpoint 8698 | -4/Upper Caves | Attracted the attention of an 0b10 checkpoint 8746 | -4/Upper Caves | Spotted B-86 Titan 8872 | -4/Upper Caves | Destroyed B-86 Titan 8917 | -4/Upper Caves | Learned 8 Research zone layouts 9079 | -4/Upper Caves | Discovered new exit (range 12) 9083 | -4/Upper Caves | Identified exit to Upper Caves 9087 | -4/Upper Caves | Entered another Upper Caves area 9087 | -4/Upper Caves | Discovered exit to Research (range 16) 9096 | -4/Upper Caves | Encountered a Warlord checkpoint 9194 | -4/Upper Caves | Learned location of 1 exit from Research 9218 | -4/Upper Caves | Found Alien Artifact 9219 | -4/Upper Caves | Identified Core Expander 9219 | -4/Upper Caves | Installed Core Expander, added new Utility slot 9269 | -4/Upper Caves | Discovered new exit (range 10) 9272 | -4/Upper Caves | Identified exit to Zhirov 9323 | -4/Upper Caves | Entered Zhirov 9323 | -4/Zhirov | Discovered new exit (range 3) 9329 | -4/Zhirov | Met Zhirov 9335 | -4/Zhirov | Learned location of Quarantine (-2) 9335 | -4/Zhirov | Learned location of Testing (-3) 9335 | -4/Zhirov | Learned location of Command (-1) 9341 | -4/Zhirov | Zhirov requested help retrieving the SGEMP Prototype 9347 | -4/Zhirov | Found Alien Artifact 9353 | -4/Zhirov | Identified Integrated Dissipator 9353 | -4/Zhirov | Installed Integrated Dissipator, increased core heat dissipation (+20) 9354 | -4/Zhirov | Found Alien Artifact 9355 | -4/Zhirov | Identified Transdimensional Reconstructor 9355 | -4/Zhirov | Warped through subspace 9451 | -4/Zhirov | Identified exit to Proximity Caves 9467 | -4/Zhirov | Entered Proximity Caves 9469 | -3/Proximity Caves | Reached level 26 9794 | -3/Proximity Caves | Destroyed 12 combat bots 9796 | -3/Proximity Caves | Lost 4 parts (1n3u) 9835 | -3/Proximity Caves | Attracted the attention of an 0b10 base 9850 | -3/Proximity Caves | Reached level 27 9870 | -3/Proximity Caves | Learned Factory emergency access door positions 9870 | -3/Proximity Caves | Learned Research trap positions 9870 | -3/Proximity Caves | Learned Armory garrison access intel 10100 | -3/Proximity Caves | Attracted the attention of an 0b10 checkpoint 10217 | -3/Proximity Caves | Discovered exit to Research (range 17) 10421 | -3/Proximity Caves | Received a Behemoth hack from an annoying Tinkerer 10749 | -3/Proximity Caves | Entered Research 10750 | -3/Research | Identified exit to Armory 10750 | -3/Research | Core integrity fell below 50% 10751 | -3/Research | Reached level 28 10752 | -3/Research | Loaded intel: 96 trap records 10753 | -3/Research | Upgraded with Utility slot (x1) 10758 | -3/Research | Identified exit to Testing 10855 | -3/Research | Fabricated R-10 Processor (x1) 10865 | -3/Research | Fabricated Lgt. Regenerative Plating (x1) 10943 | -3/Research | Fabricated Lgt. Regenerative Plating? 10949 | -3/Research | Revision forces began assault on 0b10 11034 | -3/Research | Crushed by falling debris 11208 | -3/Research | Spotted B-86 Titan 11297 | -3/Research | Entered Testing 11394 | -3/Testing | Build established: Wizard-Ninja 11399 | -3/Testing | Fabricated Exp. Optical Array (x1) 11666 | -3/Testing | Reached level 29 11666 | -3/Testing | Protovariant out of control (PP-4SKIVIP5SW) 11666 | -3/Testing | Unleashed a protovariant (PP-4SKIVIP5SW) 11695 | -3/Testing | Incoming assault squad redirected 11708 | -3/Testing | Garrison activated, responded to threat 11720 | -3/Testing | Incoming assault squad redirected 11762 | -3/Testing | Spotted Superbehemoth 11769 | -3/Testing | Spotted Investigator 11770 | -3/Testing | Scanned by Researcher 11775 | -3/Testing | Superbehemoth self-activated to run performance analysis 11792 | -3/Testing | Destroyed Investigator 11797 | -3/Testing | Fabricated S-43 Plague? 11817 | -3/Testing | System corruption reached 10% 11821 | -3/Testing | Core integrity fell below 20% 11847 | -3/Testing | Destroyed by Superbehemoth with Precision Phase Gun Last Messages --------------- 11820_ Knocked back. 11820_ P-80 Master resets M-36 Artificer, system corruption cleaned. 11820_ U-05 Engineer lays Concrete. 11823_ System corrupted: Energy discharge (-221). 11823_ U-05 Engineer builds a Wall. 11826_ Dropped Adv. Datajack. 11827_ Acquired Prototype Impact Weapon. 11827_ Identified Thunder Hammer. 11829_ Dropped Cld. Gravmag System. 11831_ Acquired Adv. Datajack. 11832_ Discarded Adv. System Shield. 11833_ Acquired Adv. Core Analyzer. 11839_ Destroyed Sml. Battery. 11839_ P-80 Master system corrupted by crushing effect. 11839_ Mak. Axe follow-up attack on P-80 Master. 11841_ Mak. Spear follow-up attack on P-80 Master. 11842_ System corrupted: Heat flow error (+173). 11843_ Lrn. Sensor Array destroyed. 11844_ P-80 Master knocked back. 11847_ Slug penetrates Wall. Map ----- +----------------------------------------------------+ | | | | | | | | | | | | | | | | | | | | | | | | | | | | | ???????????????????????????????????????????????? | | ???????????????????????????????????????????????? | | ???????????????????????????????????????????????? | | ???????????????????????????????????????????????? | | ???????????????????????????????????????????????? | | ???????????????????????????????????????????????? | | ???????????????????????????????????????????????? | | ??????????c?????????????##+#???????????????????? | | ??????????????????####### #######?????????????? | | ??????????????????# ! p + #?????????????? | | ??????????????????#= # # ! [#?????????????? | | ??????????????????# @p # #?????????????? | | ??????????????????# = p; # #?????????????? | | ??????????????????######; # """ #?????????????? | | ??????????K??K?????????? # """ #?######??????? | | ???????????????????????? """ #?#""""#??????? | | ???????????????????????? BB ###" "##?????? | | ?????????????????????####BB "" ##" "#?????? | | ?????????????????????# ## "#?????? | | ??????????????????#### =## "#?????? | | ??????????+???????#T"# =; k!%!;# "#?????? | | ??????????# ###### "####=%!%*=#+## "#?????? | | ??????""" " !u|*%=! ""#?????? | | ??????????# =%=%u]!*= """#?????? | | ??????????###############![#=###==" """#?????? | | ???????????????#######??# ######## """""#?????? | | ???????????????#"""""#??# ###################+# | | ???????????????#"" F"#??# | | ??????????????##"" ""####%%% | | ??????????????# # | | ??????????????# """"""" # g ^ k | | ??????????????# """"""" # ##########+########+# | | ??????????????# """"""" # ##! #??????? | | ??????????????# # ## #k?????? | | ??????????????# "" + ## ! # """ "" | | ??????????????#| ""T""" # ## ]]! # """ "" | +----------------------------------------------------+ Best States ------------- Heat Dissipation 131 Energy Generation 48 Energy Capacity 790 Matter Stores 300 Matter Capacity 300 Sight Range 26 Robot Scan Range 34 Terrain Scan Range 16 Terrain Scan Density 260 Jamming Range 12 Armor Coverage 450 Resistance: KI 25 Resistance: TH 20 Resistance: EX 10 Propulsion Shielding 66 Weapon Shielding 90 Melee Speed Boost 20 Phase Shifting 5 Evasion (%) 68 Melee Accuracy 11 Core Analysis 10 Armor Integrity Analysis 50 Offensive Hacking 39 Defensive Hacking 53 Item Schematics ----------------- Combat Drone Bay | -7/Data Miner | Free Lgt. Regenerative Plating | -7/Data Miner | Free Exp. Terrain Scanner | -7/Data Miner | Free Exp. Targeting Computer | -7/Data Miner | Free Plasma Sword | -7/Data Miner | Free Riot Gun | -6/Zion | Free Arc Thrower | -6/Zion | Free Battle Rifle | -6/Zion | Free Barrage Gun | -6/Zion | Free Hvy. Riot Gun | -6/Zion | Free Flamer | -6/Zion | Free Battle Cannon | -6/Zion | Free Enh. Quantum Rifle | -4/Factory | Hacked Assault Drone Bay | -4/Zhirov | Free Exp. Heat Sink | -4/Zhirov | Free Exp. Optical Array | -4/Zhirov | Free Imp. Arc Thrower | -4/Zhirov | Free Rnf. Quantum Reactor | -3/Research | Hacked Adv. Component Analysis Suite | -3/Research | Hacked Quantum Reactor | -3/Research | Hacked Antigrav Array | -3/Research | Hacked Robot Schematics ------------------ S-27 Virus | -7/Data Miner | Free G-50 Soldier | -7/Data Miner | Free X-72 Disruptor | -7/Data Miner | Free H-66 Slayer | -7/Data Miner | Free P-70 Sage | -7/Data Miner | Free L-41 Fighter | -7/Data Miner | Free I-36 Angel | -7/Data Miner | Free Y-72 Warden | -3/Research | Hacked Fabricated ------------ R-10 Processor | x1 | -3/Research | Preloaded Lgt. Regenerative Plating | x1 | -3/Research Lgt. Regenerative Plating | x1 | -3/Research Exp. Optical Array | x1 | -3/Testing S-43 Plague | x4 | -3/Testing | Preloaded Alien Tech Used ----------------- Core Expander Integrated Dissipator Transdimensional Reconstructor Achievements -------------- Assassin Deadly Force Melee Specialist Challenges ------------ None RPGLIKE | -11 -10 -10 -10 -9 -8 -7 -7 -7 -6 -6 -6 -6 -6 -5 -5 -5 -5 -5 -5 -4 -4 -4 -4 -3 -3 -3 --------- Run | Scr Mat Min Exi Min Mat Fac Low Dat Pro Fac Low Low Zio Pro Fac Ext Cet Arc Hub Fac Upp Upp Zhi Pro Res Tes Levels Raised 28 | . . 1 . 1 3 3 . 1 1 2 . 1 . 3 1 3 1 . 2 1 . . . 2 1 1 XP Earned 45396 | 3000 1040 975 200 1090 4643 4329 659 650 1833 2920 800 1025 650 3281 2425 4081 1630 614 1696 1517 220 543 220 2666 1582 1107 XP Spent 43435 | 1000 1535 1710 90 1640 4390 3900 . . 3580 2400 . 2200 . 2000 800 6180 . . 6050 . 1485 . . 500 3600 375 Upgrades 94 | 4 9 6 1 8 9 4 . . 11 3 . 6 . 1 1 17 . . 5 . 4 . . 1 2 2 Power Slot 1 | . . . . . . 1 . . . . . . . . . . . . . . . . . . . . Propulsion Slot 3 | . 1 . . . 1 1 . . . . . . . . . . . . . . . . . . . . Utility Slot 9 | 1 . 1 . . 2 1 . . . . . . . 1 . 1 . . 1 . . . . . 1 . Weapon Slot 2 | . 1 . . . . . . . . 1 . . . . . . . . . . . . . . . . Core Integrity 22 | . . 2 . 4 2 . . . 6 . . . . . . 6 . . . . 2 . . . . . Heat Dissipation 8 | . 3 . . . 1 . . . . . . . . . . 4 . . . . . . . . . . Energy Generation 1 | . . . . . . . . . . . . 1 . . . . . . . . . . . . . . Energy Storage 4 | . . . . . 1 . . . . . . . . . . 2 . . . . 1 . . . . . Mass Support 3 | 1 . . . . . 1 . . . 1 . . . . . . . . . . . . . . . . Inventory Capacity 3 | 1 . . . . . . . . . 1 . . . . . . . . . . 1 . . . . . Sight Range 3 | . . . . . 1 . . . . . . . . . . 1 . . . . . . . 1 . . Sensor Range 7 | . 2 . . 1 . . . . . . . . . . . 1 . . 1 . . . . . . 2 Terrain Scan Density 2 | . 1 . 1 . . . . . . . . . . . . . . . . . . . . . . . Melee Accuracy 6 | . . 2 . 1 1 . . . 1 . . . . . . . . . . . . . . . 1 . Hack Attack % 5 | . . . . . . . . . . . . 3 . . 1 1 . . . . . . . . . . Hack Defense % 5 | . . . . . . . . . . . . 2 . . . . . . 3 . . . . . . . KI Resistance % 4 | . 1 1 . . . . . . 2 . . . . . . . . . . . . . . . . . TH Resistance % 4 | 1 . . . 2 . . . . 1 . . . . . . . . . . . . . . . . . EX Resistance % 2 | . . . . . . . . . 1 . . . . . . 1 . . . . . . . . . . Protomatter Created 2861 | . 38 . . 42 312 311 75 . 145 84 77 57 . 129 65 145 . . 303 . 83 146 . 494 107 248 Integrity Restored 9860 | . 114 48 . 126 783 618 199 . 225 222 231 171 . 383 63 1964 637 . 881 . 513 300 . 1482 321 579 Core 8538 | . 114 48 . 126 783 618 199 . 30 222 231 171 . 313 63 1579 290 . 556 . 513 300 . 1482 321 579 Parts 1322 | . . . . . . . . . 195 . . . . 70 . 385 347 . 325 . . . . . . . Protomatter Decayed 2149 | . . . . . 6 104 . . 66 10 . . . 5 44 149 131 . 319 . . 46 . . 1185 84 Game ------ Seed HardenedStasisNeutralizer Manual? 0 Play Time 04:41:13 Cumulative 275.8 hours Start 2022.01.02 @ 15:33:00 End 2022.01.05 @ 14:58:57 Sessions 5 Manual Loads 0 Difficulty Rogue Special Mode Winter2019/RPGLIKE Game No. 87 Rogue 68 Adventurer 19 Explorer 0 Win Type - Total 4 Types 2/0/1/1/0/0/0/0/0 Lore% 67 Gallery% 70 Achievement% 60 Wizard Run 0 Options --------- ASCII 0 Keyboard 0 Movement Mouse Keybinds 0 Fullscreen 2 Font 14/SmallcapsGlow Map View 84x54 Tactical HUD 1 Map Filters NONE Filters NONE Steam 1 RUN: bbc2b907-10f6-4f84-8f7f-3b8ceea60350